[Event "Titled Tuesday Blitz November 01 Late 2022"]
[White "Mendez Fortes, Eduardo Jesus"]
[Black "Khripachenko, Alexander"]
[WhiteFideId "3502376"]
[BlackFideId "54184975"]
[WhiteElo "2307"]
[BlackElo "2201"]
[Result "0-1"]
[Round "09"]
[TimeControl "180+1"]
[Date "2022.11.01"]
[WhiteClock "0:00:13"]
[BlackClock "0:00:54"]

1. e4 {[%clk 0:03:00]}  e5 {[%clk 0:02:55]} 2. Nf3 {[%clk 0:03:00]}  Nf6 {[%clk 0:02:56]} 3. d4 {[%clk 0:03:00]}  Nxe4 {[%clk 0:02:55]} 4. Bd3 {[%clk 0:02:59]}  Nc6 {[%clk 0:02:55]} 5. O-O {[%clk 0:02:54]}  d5 {[%clk 0:02:51]} 6. Nxe5 {[%clk 0:02:42]}  Nxe5 {[%clk 0:02:50]} 7. dxe5 {[%clk 0:02:41]}  Nc5 {[%clk 0:02:48]} 8. Be2 {[%clk 0:02:29]}  Be7 {[%clk 0:02:47]} 9. Nd2 {[%clk 0:02:24]}  O-O {[%clk 0:02:46]} 10. Nb3 {[%clk 0:02:19]}  Re8 {[%clk 0:02:41]} 11. f4 {[%clk 0:02:08]}  Ne4 {[%clk 0:02:32]} 12. Bf3 {[%clk 0:02:01]}  c5 {[%clk 0:02:31]} 13. Be3 {[%clk 0:01:54]}  b6 {[%clk 0:02:24]} 14. Bxe4 {[%clk 0:01:45]}  dxe4 {[%clk 0:02:24]} 15. Qxd8 {[%clk 0:01:46]}  Rxd8 {[%clk 0:02:24]} 16. Rfd1 {[%clk 0:01:41]}  Be6 {[%clk 0:02:23]} 17. Nd2 {[%clk 0:01:39]}  Bd5 {[%clk 0:02:23]} 18. c4 {[%clk 0:01:38]}  Bc6 {[%clk 0:02:22]} 19. Nf1 {[%clk 0:01:36]}  f6 {[%clk 0:02:21]} 20. b3 {[%clk 0:01:32]}  fxe5 {[%clk 0:02:21]} 21. fxe5 {[%clk 0:01:33]}  Kf7 {[%clk 0:02:21]} 22. Bf4 {[%clk 0:01:31]}  Ke6 {[%clk 0:02:21]} 23. Ne3 {[%clk 0:01:30]}  g5 {[%clk 0:02:19]} 24. Bg3 {[%clk 0:01:28]}  h5 {[%clk 0:02:20]} 25. h3 {[%clk 0:01:25]}  Rd4 {[%clk 0:02:21]} 26. Nc2 {[%clk 0:01:20]}  Rd3 {[%clk 0:02:21]} 27. Rxd3 {[%clk 0:01:08]}  exd3 {[%clk 0:02:22]} 28. Ne3 {[%clk 0:01:08]}  Rd8 {[%clk 0:02:22]} 29. Rd1 {[%clk 0:01:02]}  Be4 {[%clk 0:02:22]} 30. Nf1 {[%clk 0:00:53]}  g4 {[%clk 0:02:16]} 31. Nd2 {[%clk 0:00:51]}  Bf5 {[%clk 0:02:15]} 32. h4 {[%clk 0:00:47]}  a5 {[%clk 0:02:07]} 33. a4 {[%clk 0:00:45]}  Bf8 {[%clk 0:02:05]} 34. Bf4 {[%clk 0:00:43]}  Rd4 {[%clk 0:01:59]} 35. g3 {[%clk 0:00:42]}  Be7 {[%clk 0:01:57]} 36. Be3 {[%clk 0:00:40]}  Rd8 {[%clk 0:01:57]} 37. Bf4 {[%clk 0:00:40]}  Bg6 {[%clk 0:01:56]} 38. Kf2 {[%clk 0:00:39]}  Bf8 {[%clk 0:01:44]} 39. Ke3 {[%clk 0:00:38]}  Bg7 {[%clk 0:01:43]} 40. Re1 {[%clk 0:00:30]}  Rd4 {[%clk 0:01:34]} 41. Kf2 {[%clk 0:00:27]}  Bf8 {[%clk 0:01:34]} 42. Be3 {[%clk 0:00:26]}  Rd7 {[%clk 0:01:34]} 43. Bf4 {[%clk 0:00:26]}  Be7 {[%clk 0:01:31]} 44. Ke3 {[%clk 0:00:25]}  Rd4 {[%clk 0:01:28]} 45. Kf2 {[%clk 0:00:24]}  Rd8 {[%clk 0:01:16]} 46. Ke3 {[%clk 0:00:23]}  Rd7 {[%clk 0:01:14]} 47. Rd1 {[%clk 0:00:22]}  Rd4 {[%clk 0:01:13]} 48. Re1 {[%clk 0:00:21]}  Bd8 {[%clk 0:01:10]} 49. Kf2 {[%clk 0:00:20]}  Bc7 {[%clk 0:01:11]} 50. Be3 {[%clk 0:00:20]}  Rd7 {[%clk 0:01:09]} 51. Bf4 {[%clk 0:00:20]}  Re7 {[%clk 0:01:10]} 52. Ke3 {[%clk 0:00:19]}  Kd7 {[%clk 0:01:04]} 53. Ne4 {[%clk 0:00:18]}  Bxe5 {[%clk 0:01:02]} 54. Bg5 {[%clk 0:00:17]}  Re8 {[%clk 0:00:59]} 55. Kxd3 {[%clk 0:00:17]}  Bxg3 {[%clk 0:00:58]} 56. Re3 {[%clk 0:00:16]}  Bc7 {[%clk 0:00:56]} 57. Bf6 {[%clk 0:00:14]}  g3 {[%clk 0:00:54]} 58. Rxg3 {[%clk 0:00:13]}  Bxe4+ {[%clk 0:00:54]} 0-1


[Site "https://www.chess.com"]

[Event "Titled Tuesday Blitz November 01 Late 2022"]
[White "Mladenovic, Stefan"]
[Black "Faizrakhmanov, Ramil"]
[WhiteFideId "942227"]
[BlackFideId "24103209"]
[WhiteElo "2337"]
[BlackElo "2421"]
[Result "0-1"]
[Round "09"]
[TimeControl "180+1"]
[Date "2022.11.02"]
[WhiteClock "0:00:14"]
[BlackClock "0:00:24"]

1. d4 {[%clk 0:03:00]}  Nf6 {[%clk 0:03:00]} 2. Nf3 {[%clk 0:02:51]}  d5 {[%clk 0:02:59]} 3. Bf4 {[%clk 0:02:50]}  c5 {[%clk 0:02:59]} 4. e3 {[%clk 0:02:50]}  Nc6 {[%clk 0:02:59]} 5. Nbd2 {[%clk 0:02:49]}  cxd4 {[%clk 0:02:58]} 6. exd4 {[%clk 0:02:49]}  Bf5 {[%clk 0:02:58]} 7. c3 {[%clk 0:02:49]}  e6 {[%clk 0:02:58]} 8. Qb3 {[%clk 0:02:49]}  Qc8 {[%clk 0:02:59]} 9. Ne5 {[%clk 0:02:47]}  Be7 {[%clk 0:02:57]} 10. Bb5 {[%clk 0:02:46]}  O-O {[%clk 0:02:57]} 11. O-O {[%clk 0:02:42]}  a6 {[%clk 0:02:53]} 12. Bxc6 {[%clk 0:02:39]}  bxc6 {[%clk 0:02:54]} 13. h3 {[%clk 0:02:39]}  c5 {[%clk 0:02:53]} 14. Ndf3 {[%clk 0:02:39]}  h6 {[%clk 0:02:52]} 15. Qa4 {[%clk 0:02:37]}  Bd6 {[%clk 0:02:46]} 16. dxc5 {[%clk 0:02:36]}  Bxc5 {[%clk 0:02:40]} 17. Nd4 {[%clk 0:02:36]}  Bh7 {[%clk 0:02:33]} 18. Rad1 {[%clk 0:02:34]}  Bd6 {[%clk 0:02:12]} 19. Rfe1 {[%clk 0:02:30]}  Qc7 {[%clk 0:02:11]} 20. Qc6 {[%clk 0:02:14]}  Qxc6 {[%clk 0:01:58]} 21. Ndxc6 {[%clk 0:02:15]}  Rfc8 {[%clk 0:01:54]} 22. Nd4 {[%clk 0:01:59]}  Rab8 {[%clk 0:01:50]} 23. Nb3 {[%clk 0:01:54]}  Bc2 {[%clk 0:01:48]} 24. Rd2 {[%clk 0:01:48]}  Bxb3 {[%clk 0:01:47]} 25. axb3 {[%clk 0:01:49]}  Rxb3 {[%clk 0:01:40]} 26. Nd3 {[%clk 0:01:38]}  Bxf4 {[%clk 0:01:36]} 27. Nxf4 {[%clk 0:01:39]}  Ne4 {[%clk 0:01:35]} 28. Rde2 {[%clk 0:01:39]}  Nc5 {[%clk 0:01:33]} 29. Ra1 {[%clk 0:01:37]}  Rcb8 {[%clk 0:01:26]} 30. Ra5 {[%clk 0:01:37]}  R8b5 {[%clk 0:01:24]} 31. Rxb5 {[%clk 0:01:37]}  Rxb5 {[%clk 0:01:23]} 32. f3 {[%clk 0:01:31]}  g5 {[%clk 0:01:21]} 33. b4 {[%clk 0:01:28]}  gxf4 {[%clk 0:01:19]} 34. bxc5 {[%clk 0:01:28]}  Rxc5 {[%clk 0:01:20]} 35. Ra2 {[%clk 0:01:27]}  Rxc3 {[%clk 0:01:14]} 36. Rxa6 {[%clk 0:01:27]}  Kg7 {[%clk 0:01:11]} 37. Rd6 {[%clk 0:01:27]}  Rc2 {[%clk 0:01:07]} 38. Rd7 {[%clk 0:01:26]}  Rd2 {[%clk 0:01:06]} 39. Kf1 {[%clk 0:01:26]}  d4 {[%clk 0:01:03]} 40. Ke1 {[%clk 0:01:26]}  Rxg2 {[%clk 0:01:02]} 41. Rxd4 {[%clk 0:01:26]}  e5 {[%clk 0:01:02]} 42. Rd5 {[%clk 0:01:25]}  f6 {[%clk 0:01:02]} 43. h4 {[%clk 0:01:24]}  Rh2 {[%clk 0:01:01]} 44. Kf1 {[%clk 0:01:23]}  Rxh4 {[%clk 0:01:01]} 45. Kg2 {[%clk 0:01:24]}  Rh5 {[%clk 0:01:01]} 46. Rd7+ {[%clk 0:01:21]}  Kg6 {[%clk 0:01:01]} 47. Rd8 {[%clk 0:01:22]}  Rg5+ {[%clk 0:01:01]} 48. Kf2 {[%clk 0:01:22]}  Kf5 {[%clk 0:00:51]} 49. Rh8 {[%clk 0:01:22]}  Rg6 {[%clk 0:00:51]} 50. Rh7 {[%clk 0:01:19]}  Kg5 {[%clk 0:00:50]} 51. Rh8 {[%clk 0:01:19]}  Rg7 {[%clk 0:00:50]} 52. Kg2 {[%clk 0:01:18]}  Ra7 {[%clk 0:00:49]} 53. Rg8+ {[%clk 0:01:17]}  Kf5 {[%clk 0:00:48]} 54. Rh8 {[%clk 0:01:17]}  Ra2+ {[%clk 0:00:47]} 55. Kg1 {[%clk 0:01:16]}  Kg5 {[%clk 0:00:39]} 56. Rg8+ {[%clk 0:01:16]}  Kh4 {[%clk 0:00:36]} 57. Rg6 {[%clk 0:01:16]}  f5 {[%clk 0:00:36]} 58. Kf1 {[%clk 0:00:54]}  e4 {[%clk 0:00:34]} 59. Ke1 {[%clk 0:00:28]}  e3 {[%clk 0:00:28]} 60. Rg8 {[%clk 0:00:14]}  Rf2 {[%clk 0:00:24]} 0-1


[Site "https://www.chess.com"]

[Event "Titled Tuesday Blitz November 01 Late 2022"]
[White "Munoz Sanchez, Miguel"]
[Black "Mesa Cruz, Juan Carlos"]
[WhiteFideId "3600734"]
[BlackFideId "6423400"]
[WhiteElo "2166"]
[BlackElo "2059"]
[Result "0-1"]
[Round "09"]
[TimeControl "180+1"]
[Date "2022.11.02"]
[WhiteClock "0:00:56"]
[BlackClock "0:00:12"]

1. e4 {[%clk 0:02:45]}  c5 {[%clk 0:02:56]} 2. Nf3 {[%clk 0:02:45]}  d6 {[%clk 0:02:53]} 3. c3 {[%clk 0:02:45]}  Nf6 {[%clk 0:02:53]} 4. h3 {[%clk 0:02:42]}  e6 {[%clk 0:02:46]} 5. Bd3 {[%clk 0:02:41]}  Be7 {[%clk 0:02:44]} 6. O-O {[%clk 0:02:41]}  O-O {[%clk 0:02:41]} 7. Re1 {[%clk 0:02:41]}  Nc6 {[%clk 0:02:39]} 8. Bf1 {[%clk 0:02:40]}  e5 {[%clk 0:02:35]} 9. d4 {[%clk 0:02:40]}  cxd4 {[%clk 0:02:35]} 10. cxd4 {[%clk 0:02:40]}  exd4 {[%clk 0:02:36]} 11. Nxd4 {[%clk 0:02:40]}  Re8 {[%clk 0:02:36]} 12. Nc3 {[%clk 0:02:39]}  Bd7 {[%clk 0:02:22]} 13. Bf4 {[%clk 0:02:37]}  Qb6 {[%clk 0:01:39]} 14. Nb3 {[%clk 0:02:24]}  Rad8 {[%clk 0:01:17]} 15. Nd5 {[%clk 0:02:14]}  Nxd5 {[%clk 0:01:12]} 16. exd5 {[%clk 0:02:15]}  Ne5 {[%clk 0:00:29]} 17. Qh5 {[%clk 0:02:10]}  Bf6 {[%clk 0:00:24]} 18. Rad1 {[%clk 0:02:07]}  Ba4 {[%clk 0:00:23]} 19. Be3 {[%clk 0:02:02]}  Qc7 {[%clk 0:00:18]} 20. Rc1 {[%clk 0:02:01]}  Qd7 {[%clk 0:00:18]} 21. Nd4 {[%clk 0:02:00]}  a6 {[%clk 0:00:08]} 22. Nf5 {[%clk 0:02:00]}  g6 {[%clk 0:00:07]} 23. Nh6+ {[%clk 0:01:59]}  Kg7 {[%clk 0:00:07]} 24. Qe2 {[%clk 0:01:53]}  Bb5 {[%clk 0:00:08]} 25. Qd2 {[%clk 0:01:50]}  Bxf1 {[%clk 0:00:07]} 26. Rxf1 {[%clk 0:01:50]}  Qb5 {[%clk 0:00:07]} 27. Ng4 {[%clk 0:01:47]}  Nxg4 {[%clk 0:00:07]} 28. hxg4 {[%clk 0:01:48]}  Qxb2 {[%clk 0:00:06]} 29. Bh6+ {[%clk 0:01:46]}  Kg8 {[%clk 0:00:05]} 30. Qxb2 {[%clk 0:01:46]}  Bxb2 {[%clk 0:00:06]} 31. Rb1 {[%clk 0:01:46]}  Bg7 {[%clk 0:00:06]} 32. Bxg7 {[%clk 0:01:45]}  Kxg7 {[%clk 0:00:07]} 33. Rxb7 {[%clk 0:01:44]}  Re5 {[%clk 0:00:08]} 34. Rd1 {[%clk 0:01:43]}  Re4 {[%clk 0:00:08]} 35. Rc1 {[%clk 0:01:35]}  Rxg4 {[%clk 0:00:06]} 36. Rcc7 {[%clk 0:01:35]}  Rf4 {[%clk 0:00:07]} 37. Ra7 {[%clk 0:01:33]}  Re8 {[%clk 0:00:07]} 38. Rxa6 {[%clk 0:01:32]}  Re1+ {[%clk 0:00:07]} 39. Kh2 {[%clk 0:01:30]}  Rxf2 {[%clk 0:00:08]} 40. Rxd6 {[%clk 0:01:27]}  Rxa2 {[%clk 0:00:06]} 41. Rdd7 {[%clk 0:01:26]}  Rf1 {[%clk 0:00:07]} 42. Kg3 {[%clk 0:01:24]}  Rff2 {[%clk 0:00:07]} 43. Kh3 {[%clk 0:01:23]}  h5 {[%clk 0:00:05]} 44. Re7 {[%clk 0:01:19]}  Ra3+ {[%clk 0:00:05]} 45. Kh2 {[%clk 0:01:18]}  Rd3 {[%clk 0:00:05]} 46. Re5 {[%clk 0:01:13]}  h4 {[%clk 0:00:05]} 47. Rg5 {[%clk 0:01:11]}  h3 {[%clk 0:00:04]} 48. Rc5 {[%clk 0:01:04]}  Rfd2 {[%clk 0:00:03]} 49. d6 {[%clk 0:00:59]}  hxg2 {[%clk 0:00:03]} 50. Rxg2 {[%clk 0:00:57]}  Rxg2+ {[%clk 0:00:04]} 51. Kxg2 {[%clk 0:00:57]}  Rxd6 {[%clk 0:00:04]} 52. Rc3 {[%clk 0:00:58]}  Re6 {[%clk 0:00:05]} 53. Kf2 {[%clk 0:00:58]}  Kf6 {[%clk 0:00:06]} 54. Kg2 {[%clk 0:00:58]}  Re5 {[%clk 0:00:07]} 55. Rc5 {[%clk 0:00:59]}  Kf5 {[%clk 0:00:07]} 56. Rc7 {[%clk 0:00:59]}  Kf6 {[%clk 0:00:07]} 57. Rc6+ {[%clk 0:00:59]}  Re6 {[%clk 0:00:08]} 58. Rc7 {[%clk 0:00:59]}  g5 {[%clk 0:00:09]} 59. Rc5 {[%clk 0:01:00]}  Kg6 {[%clk 0:00:10]} 60. Kg3 {[%clk 0:01:00]}  f5 {[%clk 0:00:10]} 61. Rc7 {[%clk 0:01:00]}  Ra6 {[%clk 0:00:11]} 62. Rb7 {[%clk 0:01:00]}  Ra3+ {[%clk 0:00:11]} 63. Kf2 {[%clk 0:01:00]}  Kh5 {[%clk 0:00:11]} 64. Rb5 {[%clk 0:00:59]}  Kg4 {[%clk 0:00:12]} 65. Rb4+ {[%clk 0:01:00]}  f4 {[%clk 0:00:12]} 66. Rb7 {[%clk 0:01:00]}  Ra2+ {[%clk 0:00:13]} 67. Kf1 {[%clk 0:01:00]}  Kg3 {[%clk 0:00:13]} 68. Rb1 {[%clk 0:00:57]}  f3 {[%clk 0:00:13]} 69. Kg1 {[%clk 0:00:57]}  g4 {[%clk 0:00:13]} 70. Rf1 {[%clk 0:00:56]}  Rh2 {[%clk 0:00:12]} 0-1


[Site "https://www.chess.com"]

[Event "Titled Tuesday Blitz November 01 Late 2022"]
[White "Muradli, Mahammad"]
[Black "Chigaev, Maksim"]
[WhiteFideId "13409301"]
[BlackFideId "4108116"]
[WhiteElo "2611"]
[BlackElo "2537"]
[Result "0-1"]
[Round "09"]
[TimeControl "180+1"]
[Date "2022.11.01"]
[WhiteClock "0:00:01"]
[BlackClock "0:00:02"]

1. c4 {[%clk 0:03:00]}  e6 {[%clk 0:02:54]} 2. Nc3 {[%clk 0:03:00]}  d5 {[%clk 0:02:55]} 3. d4 {[%clk 0:03:00]}  Nf6 {[%clk 0:02:55]} 4. cxd5 {[%clk 0:03:00]}  exd5 {[%clk 0:02:56]} 5. Bg5 {[%clk 0:03:01]}  c6 {[%clk 0:02:54]} 6. e3 {[%clk 0:03:01]}  h6 {[%clk 0:02:55]} 7. Bh4 {[%clk 0:03:01]}  Be7 {[%clk 0:02:56]} 8. Bd3 {[%clk 0:03:00]}  O-O {[%clk 0:02:56]} 9. Nf3 {[%clk 0:02:59]}  Re8 {[%clk 0:02:57]} 10. Bg3 {[%clk 0:03:00]}  a5 {[%clk 0:02:51]} 11. Ne5 {[%clk 0:02:59]}  Na6 {[%clk 0:02:49]} 12. O-O {[%clk 0:02:58]}  Nc7 {[%clk 0:02:45]} 13. f4 {[%clk 0:02:58]}  Ne6 {[%clk 0:02:43]} 14. Rc1 {[%clk 0:02:55]}  c5 {[%clk 0:02:16]} 15. f5 {[%clk 0:02:33]}  Ng5 {[%clk 0:02:06]} 16. Bf4 {[%clk 0:02:33]}  cxd4 {[%clk 0:01:38]} 17. exd4 {[%clk 0:02:34]}  Qb6 {[%clk 0:01:38]} 18. Bb5 {[%clk 0:02:31]}  Rd8 {[%clk 0:01:30]} 19. Bxg5 {[%clk 0:02:31]}  hxg5 {[%clk 0:01:29]} 20. Kh1 {[%clk 0:02:26]}  a4 {[%clk 0:01:22]} 21. Bxa4 {[%clk 0:02:17]}  Qxb2 {[%clk 0:01:18]} 22. Bb3 {[%clk 0:02:17]}  Ra5 {[%clk 0:01:08]} 23. Rc2 {[%clk 0:02:08]}  Qa3 {[%clk 0:01:07]} 24. Qd2 {[%clk 0:02:08]}  g4 {[%clk 0:00:53]} 25. Qf4 {[%clk 0:01:53]}  Qd6 {[%clk 0:00:52]} 26. Nd1 {[%clk 0:01:46]}  Bd7 {[%clk 0:00:51]} 27. Ne3 {[%clk 0:01:08]}  Bb5 {[%clk 0:00:48]} 28. Rfc1 {[%clk 0:01:06]}  Raa8 {[%clk 0:00:15]} 29. N3xg4 {[%clk 0:00:50]}  Nxg4 {[%clk 0:00:15]} 30. Qxg4 {[%clk 0:00:51]}  Bf6 {[%clk 0:00:16]} 31. Qg3 {[%clk 0:00:34]}  Re8 {[%clk 0:00:11]} 32. Rc5 {[%clk 0:00:15]}  Bc6 {[%clk 0:00:05]} 33. Nxc6 {[%clk 0:00:16]}  Qxg3 {[%clk 0:00:05]} 34. hxg3 {[%clk 0:00:16]}  bxc6 {[%clk 0:00:06]} 35. Rxc6 {[%clk 0:00:17]}  Rad8 {[%clk 0:00:06]} 36. R6c5 {[%clk 0:00:12]}  Bxd4 {[%clk 0:00:06]} 37. Rxd5 {[%clk 0:00:13]}  Rxd5 {[%clk 0:00:07]} 38. Bxd5 {[%clk 0:00:13]}  Bf2 {[%clk 0:00:07]} 39. g4 {[%clk 0:00:08]}  Bg3 {[%clk 0:00:05]} 40. Kg1 {[%clk 0:00:04]}  Re5 {[%clk 0:00:03]} 41. Bf3 {[%clk 0:00:02]}  Kh7 {[%clk 0:00:03]} 42. Kf1 {[%clk 0:00:02]}  Kh6 {[%clk 0:00:03]} 43. a4 {[%clk 0:00:03]}  Kg5 {[%clk 0:00:03]} 44. Ra1 {[%clk 0:00:03]}  Ra5 {[%clk 0:00:03]} 45. Bc6 {[%clk 0:00:02]}  Be5 {[%clk 0:00:04]} 46. Ra2 {[%clk 0:00:01]}  Kxg4 {[%clk 0:00:04]} 47. Bd7 {[%clk 0:00:01]}  Kg5 {[%clk 0:00:04]} 48. Ke2 {[%clk 0:00:02]}  Bf6 {[%clk 0:00:02]} 49. Bc8 {[%clk 0:00:01]}  Rc5 {[%clk 0:00:02]} 50. Bd7 {[%clk 0:00:02]}  Re5+ {[%clk 0:00:03]} 51. Kf3 {[%clk 0:00:01]}  Rd5 {[%clk 0:00:03]} 52. Bc8 {[%clk 0:00:02]}  Rc5 {[%clk 0:00:03]} 53. Bd7 {[%clk 0:00:02]}  Rc7 {[%clk 0:00:03]} 54. Bb5 {[%clk 0:00:02]}  Rc5 {[%clk 0:00:02]} 55. g4 {[%clk 0:00:01]}  Rc3+ {[%clk 0:00:03]} 56. Ke4 {[%clk 0:00:01]}  Rg3 {[%clk 0:00:03]} 57. Kd5 {[%clk 0:00:01]}  Rxg4 {[%clk 0:00:03]} 58. Bd7 {[%clk 0:00:02]}  Bd4 {[%clk 0:00:03]} 59. a5 {[%clk 0:00:02]}  Ba7 {[%clk 0:00:03]} 60. a6 {[%clk 0:00:02]}  Rd4+ {[%clk 0:00:03]} 61. Kc6 {[%clk 0:00:03]}  Kf6 {[%clk 0:00:04]} 62. Bc8 {[%clk 0:00:02]}  Rd1 {[%clk 0:00:02]} 63. Kb7 {[%clk 0:00:03]}  Be3 {[%clk 0:00:03]} 64. Rb2 {[%clk 0:00:03]}  Ra1 {[%clk 0:00:03]} 65. Rb3 {[%clk 0:00:03]}  Bd4 {[%clk 0:00:03]} 66. Bd7 {[%clk 0:00:03]}  Bg1 {[%clk 0:00:03]} 67. Bc8 {[%clk 0:00:03]}  Bf2 {[%clk 0:00:03]} 68. Rd3 {[%clk 0:00:03]}  Rb1+ {[%clk 0:00:03]} 69. Ka8 {[%clk 0:00:03]}  Ra1 {[%clk 0:00:03]} 70. Kb7 {[%clk 0:00:03]}  Rb1+ {[%clk 0:00:02]} 71. Kc7 {[%clk 0:00:04]}  Rc1+ {[%clk 0:00:03]} 72. Kd7 {[%clk 0:00:02]}  Ra1 {[%clk 0:00:04]} 73. Kd8 {[%clk 0:00:02]}  Rc1 {[%clk 0:00:03]} 74. Rd6+ {[%clk 0:00:02]}  Ke5 {[%clk 0:00:03]} 75. Rd3 {[%clk 0:00:01]}  Bb6+ {[%clk 0:00:03]} 76. Kd7 {[%clk 0:00:01]}  Rc7+ {[%clk 0:00:04]} 77. Ke8 {[%clk 0:00:01]}  Rxc8+ {[%clk 0:00:04]} 78. Kxf7 {[%clk 0:00:02]}  Rc7+ {[%clk 0:00:05]} 79. Kg6 {[%clk 0:00:03]}  Ra7 {[%clk 0:00:03]} 80. Ra3 {[%clk 0:00:02]}  Bd4 {[%clk 0:00:03]} 81. Ra5+ {[%clk 0:00:02]}  Ke4 {[%clk 0:00:03]} 82. Ra4 {[%clk 0:00:03]}  Kd3 {[%clk 0:00:03]} 83. Ra3+ {[%clk 0:00:02]}  Kc4 {[%clk 0:00:03]} 84. Ra4+ {[%clk 0:00:02]}  Kd5 {[%clk 0:00:03]} 85. Ra5+ {[%clk 0:00:02]}  Kc6 {[%clk 0:00:02]} 86. Ra4 {[%clk 0:00:02]}  Bf6 {[%clk 0:00:03]} 87. Ra1 {[%clk 0:00:01]}  Bxa1 {[%clk 0:00:02]} 0-1


[Site "https://www.chess.com"]

[Event "Titled Tuesday Blitz November 01 Late 2022"]
[White "Petrova, Irina"]
[Black "Melikhov, Evgeny V."]
[WhiteFideId "14124122"]
[BlackFideId "4122046"]
[WhiteElo "2023"]
[BlackElo "2169"]
[Result "0-1"]
[Round "09"]
[TimeControl "180+1"]
[Date "2022.11.02"]
[WhiteClock "0:00:01"]
[BlackClock "0:00:13"]

1. e4 {[%clk 0:03:00]}  c5 {[%clk 0:02:57]} 2. Nf3 {[%clk 0:03:00]}  d6 {[%clk 0:02:57]} 3. Bb5+ {[%clk 0:03:00]}  Nd7 {[%clk 0:02:57]} 4. O-O {[%clk 0:02:59]}  a6 {[%clk 0:02:56]} 5. Bxd7+ {[%clk 0:02:56]}  Bxd7 {[%clk 0:02:56]} 6. d4 {[%clk 0:02:56]}  cxd4 {[%clk 0:02:56]} 7. Qxd4 {[%clk 0:02:57]}  e5 {[%clk 0:02:56]} 8. Qd3 {[%clk 0:02:57]}  Rc8 {[%clk 0:02:53]} 9. a4 {[%clk 0:02:55]}  h6 {[%clk 0:02:42]} 10. c4 {[%clk 0:02:54]}  Nf6 {[%clk 0:02:39]} 11. Nc3 {[%clk 0:02:54]}  Be7 {[%clk 0:02:38]} 12. Rd1 {[%clk 0:02:49]}  O-O {[%clk 0:02:37]} 13. b3 {[%clk 0:02:49]}  Bc6 {[%clk 0:02:21]} 14. Ba3 {[%clk 0:02:45]}  Ne8 {[%clk 0:02:17]} 15. Nd2 {[%clk 0:02:36]}  f5 {[%clk 0:01:53]} 16. exf5 {[%clk 0:02:14]}  Qd7 {[%clk 0:01:51]} 17. Nd5 {[%clk 0:02:13]}  Bd8 {[%clk 0:01:46]} 18. Ne4 {[%clk 0:02:03]}  Qxf5 {[%clk 0:01:37]} 19. f3 {[%clk 0:01:56]}  Qe6 {[%clk 0:01:19]} 20. Kh1 {[%clk 0:01:35]}  Kh8 {[%clk 0:01:18]} 21. Ne3 {[%clk 0:00:54]}  Be7 {[%clk 0:01:06]} 22. Nd5 {[%clk 0:00:35]}  Bd8 {[%clk 0:01:01]} 23. Ne3 {[%clk 0:00:34]}  Bb6 {[%clk 0:00:52]} 24. Nd5 {[%clk 0:00:25]}  Bd4 {[%clk 0:00:49]} 25. Ndc3 {[%clk 0:00:17]}  Rd8 {[%clk 0:00:40]} 26. Rac1 {[%clk 0:00:15]}  Nf6 {[%clk 0:00:40]} 27. Nxf6 {[%clk 0:00:14]}  Qxf6 {[%clk 0:00:39]} 28. Ne4 {[%clk 0:00:12]}  Qg6 {[%clk 0:00:37]} 29. Ng3 {[%clk 0:00:10]}  Qg5 {[%clk 0:00:34]} 30. Rb1 {[%clk 0:00:08]}  Rf4 {[%clk 0:00:32]} 31. Bb2 {[%clk 0:00:07]}  Rh4 {[%clk 0:00:29]} 32. Nf1 {[%clk 0:00:07]}  Rf8 {[%clk 0:00:24]} 33. Bxd4 {[%clk 0:00:06]}  Rxd4 {[%clk 0:00:24]} 34. Qe2 {[%clk 0:00:04]}  Rdf4 {[%clk 0:00:22]} 35. Nd2 {[%clk 0:00:03]}  Rh4 {[%clk 0:00:19]} 36. Ne4 {[%clk 0:00:03]}  Qf4 {[%clk 0:00:15]} 37. Rxd6 {[%clk 0:00:01]}  Qxh2# {[%clk 0:00:13]} 0-1


[Site "https://www.chess.com"]

[Event "Titled Tuesday Blitz November 01 Late 2022"]
[White "Postny, Evgeny"]
[Black "Maksimovic, Bojan"]
[WhiteFideId "2804344"]
[BlackFideId "14408120"]
[WhiteElo "2473"]
[BlackElo "2447"]
[Result "1/2-1/2"]
[Round "09"]
[TimeControl "180+1"]
[Date "2022.11.01"]
[WhiteClock "0:00:06"]
[BlackClock "0:00:15"]

1. e4 {[%clk 0:03:00]}  g6 {[%clk 0:03:00]} 2. d4 {[%clk 0:03:00]}  Bg7 {[%clk 0:03:00]} 3. Nc3 {[%clk 0:03:00]}  d6 {[%clk 0:03:01]} 4. Nf3 {[%clk 0:03:00]}  a6 {[%clk 0:03:02]} 5. a4 {[%clk 0:02:57]}  Nf6 {[%clk 0:03:02]} 6. Be2 {[%clk 0:02:56]}  O-O {[%clk 0:03:02]} 7. O-O {[%clk 0:02:57]}  Nc6 {[%clk 0:03:03]} 8. h3 {[%clk 0:02:56]}  e6 {[%clk 0:03:03]} 9. Bg5 {[%clk 0:02:53]}  h6 {[%clk 0:03:03]} 10. Be3 {[%clk 0:02:53]}  b6 {[%clk 0:03:02]} 11. Qd2 {[%clk 0:02:46]}  Kh7 {[%clk 0:03:02]} 12. Bd3 {[%clk 0:02:46]}  Bb7 {[%clk 0:03:01]} 13. Rae1 {[%clk 0:02:44]}  Nb4 {[%clk 0:02:59]} 14. Nh2 {[%clk 0:02:38]}  c5 {[%clk 0:02:53]} 15. f3 {[%clk 0:02:27]}  cxd4 {[%clk 0:02:40]} 16. Bxd4 {[%clk 0:02:28]}  e5 {[%clk 0:02:40]} 17. Bf2 {[%clk 0:02:21]}  d5 {[%clk 0:02:38]} 18. exd5 {[%clk 0:02:17]}  Nfxd5 {[%clk 0:02:34]} 19. Nxd5 {[%clk 0:02:11]}  Nxd3 {[%clk 0:02:34]} 20. Qxd3 {[%clk 0:02:08]}  Qxd5 {[%clk 0:02:34]} 21. Qxd5 {[%clk 0:02:08]}  Bxd5 {[%clk 0:02:34]} 22. Bxb6 {[%clk 0:02:08]}  Bc4 {[%clk 0:02:34]} 23. Rf2 {[%clk 0:02:06]}  Rab8 {[%clk 0:02:30]} 24. a5 {[%clk 0:02:06]}  f5 {[%clk 0:01:45]} 25. Nf1 {[%clk 0:02:06]}  e4 {[%clk 0:01:33]} 26. c3 {[%clk 0:01:58]}  exf3 {[%clk 0:01:31]} 27. Rxf3 {[%clk 0:01:56]}  f4 {[%clk 0:01:24]} 28. Nd2 {[%clk 0:01:50]}  Bb5 {[%clk 0:01:17]} 29. Re7 {[%clk 0:01:28]}  Kg8 {[%clk 0:01:17]} 30. Nb3 {[%clk 0:01:05]}  g5 {[%clk 0:01:09]} 31. Nd4 {[%clk 0:01:04]}  Bxd4+ {[%clk 0:01:06]} 32. Bxd4 {[%clk 0:01:02]}  Rf7 {[%clk 0:01:06]} 33. Re6 {[%clk 0:00:56]}  Kh7 {[%clk 0:01:06]} 34. Rf2 {[%clk 0:00:45]}  Bc4 {[%clk 0:01:06]} 35. Rc6 {[%clk 0:00:44]}  Bb5 {[%clk 0:01:06]} 36. Re6 {[%clk 0:00:38]}  Bc4 {[%clk 0:01:06]} 37. Re5 {[%clk 0:00:39]}  Rfb7 {[%clk 0:00:49]} 38. b4 {[%clk 0:00:38]}  Rc8 {[%clk 0:00:48]} 39. Rd2 {[%clk 0:00:37]}  Rd7 {[%clk 0:00:48]} 40. Rd1 {[%clk 0:00:35]}  Kg6 {[%clk 0:00:48]} 41. Rde1 {[%clk 0:00:35]}  Kh5 {[%clk 0:00:46]} 42. Kh2 {[%clk 0:00:33]}  Rc6 {[%clk 0:00:44]} 43. g4+ {[%clk 0:00:28]}  fxg3+ {[%clk 0:00:44]} 44. Kxg3 {[%clk 0:00:29]}  Rf7 {[%clk 0:00:42]} 45. h4 {[%clk 0:00:27]}  Rcf6 {[%clk 0:00:42]} 46. hxg5 {[%clk 0:00:26]}  Rf3+ {[%clk 0:00:43]} 47. Kg2 {[%clk 0:00:25]}  hxg5 {[%clk 0:00:43]} 48. Be3 {[%clk 0:00:18]}  Bf1+ {[%clk 0:00:40]} 49. Rxf1 {[%clk 0:00:11]}  Rxf1 {[%clk 0:00:41]} 50. Rxg5+ {[%clk 0:00:12]}  Kh4 {[%clk 0:00:41]} 51. Rg6 {[%clk 0:00:11]}  R1f3 {[%clk 0:00:32]} 52. Rh6+ {[%clk 0:00:07]}  Kg4 {[%clk 0:00:32]} 53. Rg6+ {[%clk 0:00:07]}  Kh4 {[%clk 0:00:31]} 54. Rh6+ {[%clk 0:00:06]}  Kg4 {[%clk 0:00:31]} 55. Rg6+ {[%clk 0:00:06]}  Kh4 {[%clk 0:00:15]} 1/2-1/2


[Site "https://www.chess.com"]